[Event "Titled Tuesday Blitz April 05 Early 2022"]
[White "Sellitti, Federico"]
[Black "Pischal, Yulia"]
[WhiteFideId "821829"]
[BlackFideId "14102390"]
[WhiteElo "2557"]
[BlackElo "1931"]
[Result "1-0"]
[Round "01"]
[TimeControl "180+1"]
[Date "2022.04.05"]
[WhiteClock "0:00:17"]
[BlackClock "0:00:01"]

1. e4 {[%clk 0:02:59]}  c5 {[%clk 0:02:57]} 2. Nc3 {[%clk 0:02:59]}  Nc6 {[%clk 0:02:56]} 3. g3 {[%clk 0:03:00]}  g6 {[%clk 0:02:55]} 4. Bg2 {[%clk 0:03:01]}  Bg7 {[%clk 0:02:55]} 5. d3 {[%clk 0:03:01]}  d6 {[%clk 0:02:55]} 6. Be3 {[%clk 0:03:01]}  e6 {[%clk 0:02:54]} 7. Qd2 {[%clk 0:03:01]}  h6 {[%clk 0:02:46]} 8. Nge2 {[%clk 0:02:56]}  Nge7 {[%clk 0:02:45]} 9. O-O {[%clk 0:02:53]}  Nd4 {[%clk 0:02:44]} 10. Nc1 {[%clk 0:02:46]}  Nec6 {[%clk 0:02:39]} 11. Nd1 {[%clk 0:02:46]}  e5 {[%clk 0:02:35]} 12. c3 {[%clk 0:02:45]}  Ne6 {[%clk 0:02:35]} 13. f4 {[%clk 0:02:45]}  exf4 {[%clk 0:02:35]} 14. gxf4 {[%clk 0:02:45]}  f5 {[%clk 0:02:34]} 15. exf5 {[%clk 0:02:32]}  gxf5 {[%clk 0:02:33]} 16. Ne2 {[%clk 0:02:33]}  O-O {[%clk 0:02:31]} 17. Ng3 {[%clk 0:02:32]}  Qe8 {[%clk 0:02:24]} 18. Bf3 {[%clk 0:02:16]}  Kh7 {[%clk 0:02:23]} 19. Bh5 {[%clk 0:02:15]}  Qe7 {[%clk 0:02:23]} 20. Qg2 {[%clk 0:02:02]}  Qh4 {[%clk 0:02:16]} 21. Kh1 {[%clk 0:01:02]}  Bd7 {[%clk 0:02:13]} 22. Rg1 {[%clk 0:00:51]}  Be8 {[%clk 0:02:00]} 23. Bxe8 {[%clk 0:00:36]}  Raxe8 {[%clk 0:01:59]} 24. Nf2 {[%clk 0:00:34]}  Ncd8 {[%clk 0:01:49]} 25. Nxf5 {[%clk 0:00:22]}  Qf6 {[%clk 0:01:29]} 26. Nxg7 {[%clk 0:00:21]}  Nxg7 {[%clk 0:01:29]} 27. Ng4 {[%clk 0:00:20]}  Qf5 {[%clk 0:01:26]} 28. Rae1 {[%clk 0:00:18]}  Nh5 {[%clk 0:01:20]} 29. Qh3 {[%clk 0:00:11]}  Re6 {[%clk 0:01:09]} 30. Bd2 {[%clk 0:00:11]}  Rg6 {[%clk 0:01:07]} 31. Nf2 {[%clk 0:00:07]}  Qxh3 {[%clk 0:01:00]} 32. Nxh3 {[%clk 0:00:07]}  Rxg1+ {[%clk 0:00:58]} 33. Rxg1 {[%clk 0:00:08]}  Nc6 {[%clk 0:00:57]} 34. Re1 {[%clk 0:00:08]}  Rf7 {[%clk 0:00:55]} 35. Re6 {[%clk 0:00:07]}  d5 {[%clk 0:00:51]} 36. f5 {[%clk 0:00:08]}  Nf6 {[%clk 0:00:49]} 37. Nf4 {[%clk 0:00:07]}  Ng4 {[%clk 0:00:42]} 38. Nxd5 {[%clk 0:00:06]}  Nf2+ {[%clk 0:00:38]} 39. Kg2 {[%clk 0:00:05]}  Nxd3 {[%clk 0:00:38]} 40. Rxh6+ {[%clk 0:00:05]}  Kg7 {[%clk 0:00:36]} 41. Rg6+ {[%clk 0:00:05]}  Kf8 {[%clk 0:00:30]} 42. Rg3 {[%clk 0:00:06]}  Nde5 {[%clk 0:00:29]} 43. Bh6+ {[%clk 0:00:06]}  Ke8 {[%clk 0:00:29]} 44. Bf4 {[%clk 0:00:06]}  Kd7 {[%clk 0:00:27]} 45. Bxe5 {[%clk 0:00:05]}  Nxe5 {[%clk 0:00:28]} 46. Ne3 {[%clk 0:00:06]}  b6 {[%clk 0:00:24]} 47. h4 {[%clk 0:00:06]}  Nd3 {[%clk 0:00:23]} 48. Kf3 {[%clk 0:00:04]}  Nxb2 {[%clk 0:00:20]} 49. h5 {[%clk 0:00:05]}  Rh7 {[%clk 0:00:19]} 50. Kg4 {[%clk 0:00:03]}  Nd3 {[%clk 0:00:19]} 51. Ng2 {[%clk 0:00:03]}  Ne5+ {[%clk 0:00:18]} 52. Kf4 {[%clk 0:00:02]}  Kd6 {[%clk 0:00:18]} 53. Rh3 {[%clk 0:00:02]}  Rh6 {[%clk 0:00:17]} 54. Ne3 {[%clk 0:00:02]}  c4 {[%clk 0:00:17]} 55. Ng4 {[%clk 0:00:02]}  Nxg4 {[%clk 0:00:16]} 56. Kxg4 {[%clk 0:00:03]}  Ke5 {[%clk 0:00:14]} 57. Kg5 {[%clk 0:00:03]}  Rh8 {[%clk 0:00:15]} 58. h6 {[%clk 0:00:04]}  Rg8+ {[%clk 0:00:14]} 59. Kh5 {[%clk 0:00:05]}  Kxf5 {[%clk 0:00:14]} 60. Rf3+ {[%clk 0:00:05]}  Ke4 {[%clk 0:00:14]} 61. Rf7 {[%clk 0:00:06]}  Ke5 {[%clk 0:00:12]} 62. h7 {[%clk 0:00:06]}  Rh8 {[%clk 0:00:11]} 63. Rxa7 {[%clk 0:00:07]}  Ke4 {[%clk 0:00:11]} 64. Kh6 {[%clk 0:00:07]}  Kd3 {[%clk 0:00:11]} 65. Kg7 {[%clk 0:00:08]}  Rc8 {[%clk 0:00:10]} 66. h8=Q {[%clk 0:00:07]}  Rxh8 {[%clk 0:00:09]} 67. Kxh8 {[%clk 0:00:08]}  Kxc3 {[%clk 0:00:10]} 68. Rb7 {[%clk 0:00:09]}  Kb2 {[%clk 0:00:08]} 69. a4 {[%clk 0:00:09]}  Ka3 {[%clk 0:00:06]} 70. Rxb6 {[%clk 0:00:08]}  Kxa4 {[%clk 0:00:06]} 71. Kg7 {[%clk 0:00:09]}  c3 {[%clk 0:00:06]} 72. Kf6 {[%clk 0:00:09]}  c2 {[%clk 0:00:05]} 73. Rc6 {[%clk 0:00:09]}  Kb3 {[%clk 0:00:05]} 74. Ke5 {[%clk 0:00:10]}  Kb2 {[%clk 0:00:05]} 75. Rb6+ {[%clk 0:00:11]}  Ka1 {[%clk 0:00:04]} 76. Rc6 {[%clk 0:00:11]}  Kb2 {[%clk 0:00:03]} 77. Rb6+ {[%clk 0:00:12]}  Ka1 {[%clk 0:00:03]} 78. Kd4 {[%clk 0:00:13]}  c1=Q {[%clk 0:00:02]} 79. Ra6+ {[%clk 0:00:14]}  Kb2 {[%clk 0:00:01]} 80. Rb6+ {[%clk 0:00:14]}  Ka3 {[%clk 0:00:01]} 81. Ra6+ {[%clk 0:00:15]}  Kb4 {[%clk 0:00:01]} 82. Rb6+ {[%clk 0:00:16]}  Ka5 {[%clk 0:00:02]} 83. Rd6 {[%clk 0:00:17]}  Qd1+ {[%clk 0:00:01]} 84. Ke5 {[%clk 0:00:17]} 1-0


[Site "https://www.chess.com"]

[Event "Titled Tuesday Blitz April 05 Early 2022"]
[White "Sergienko, Sergey"]
[Black "Ambartsumova, Karina"]
[WhiteFideId "4115791"]
[BlackFideId "4166299"]
[WhiteElo "2193"]
[BlackElo "2262"]
[Result "1-0"]
[Round "01"]
[TimeControl "180+1"]
[Date "2022.04.05"]
[WhiteClock "0:00:13"]
[BlackClock "0:00:09"]

1. e4 {[%clk 0:02:58]}  e5 {[%clk 0:02:59]} 2. Nf3 {[%clk 0:02:56]}  Nc6 {[%clk 0:02:59]} 3. Bb5 {[%clk 0:02:55]}  a6 {[%clk 0:02:57]} 4. Ba4 {[%clk 0:02:55]}  Nf6 {[%clk 0:02:57]} 5. O-O {[%clk 0:02:54]}  Be7 {[%clk 0:02:57]} 6. Re1 {[%clk 0:02:53]}  b5 {[%clk 0:02:57]} 7. Bb3 {[%clk 0:02:52]}  O-O {[%clk 0:02:57]} 8. c3 {[%clk 0:02:51]}  d5 {[%clk 0:02:56]} 9. d4 {[%clk 0:02:50]}  Nxe4 {[%clk 0:02:47]} 10. dxe5 {[%clk 0:02:44]}  Be6 {[%clk 0:02:47]} 11. Nbd2 {[%clk 0:02:39]}  Nxd2 {[%clk 0:02:04]} 12. Bxd2 {[%clk 0:02:35]}  Na5 {[%clk 0:01:51]} 13. Bc2 {[%clk 0:02:29]}  c5 {[%clk 0:01:50]} 14. Bf4 {[%clk 0:02:14]}  Nc4 {[%clk 0:01:42]} 15. Qc1 {[%clk 0:01:50]}  Rc8 {[%clk 0:01:15]} 16. b3 {[%clk 0:01:49]}  Nb6 {[%clk 0:01:15]} 17. Qd2 {[%clk 0:01:32]}  Qd7 {[%clk 0:01:09]} 18. Rad1 {[%clk 0:01:28]}  Bf5 {[%clk 0:01:05]} 19. h3 {[%clk 0:01:21]}  Rfd8 {[%clk 0:01:01]} 20. e6 {[%clk 0:01:11]}  fxe6 {[%clk 0:00:39]} 21. Ne5 {[%clk 0:01:07]}  Qb7 {[%clk 0:00:39]} 22. g4 {[%clk 0:00:49]}  Bxc2 {[%clk 0:00:39]} 23. Qxc2 {[%clk 0:00:49]}  Rf8 {[%clk 0:00:39]} 24. Bg3 {[%clk 0:00:49]}  Bf6 {[%clk 0:00:38]} 25. Nd3 {[%clk 0:00:46]}  c4 {[%clk 0:00:35]} 26. Nf4 {[%clk 0:00:45]}  e5 {[%clk 0:00:32]} 27. Nh5 {[%clk 0:00:44]}  e4 {[%clk 0:00:30]} 28. b4 {[%clk 0:00:42]}  Rf7 {[%clk 0:00:30]} 29. Qd2 {[%clk 0:00:36]}  Rcf8 {[%clk 0:00:29]} 30. Nxf6+ {[%clk 0:00:35]}  Rxf6 {[%clk 0:00:30]} 31. Qg5 {[%clk 0:00:32]}  h6 {[%clk 0:00:28]} 32. Qh5 {[%clk 0:00:31]}  Rf3 {[%clk 0:00:26]} 33. g5 {[%clk 0:00:27]}  hxg5 {[%clk 0:00:26]} 34. Qxg5 {[%clk 0:00:26]}  Qf7 {[%clk 0:00:26]} 35. Rd2 {[%clk 0:00:24]}  Rxc3 {[%clk 0:00:24]} 36. Bd6 {[%clk 0:00:24]}  Re8 {[%clk 0:00:15]} 37. Bc5 {[%clk 0:00:24]}  Nd7 {[%clk 0:00:14]} 38. Rxd5 {[%clk 0:00:23]}  Nf6 {[%clk 0:00:10]} 39. Rf5 {[%clk 0:00:21]}  Rxh3 {[%clk 0:00:10]} 40. Bd4 {[%clk 0:00:19]}  Rh6 {[%clk 0:00:10]} 41. Qg2 {[%clk 0:00:17]}  Rg6 {[%clk 0:00:10]} 42. Rg5 {[%clk 0:00:17]}  Rxg5 {[%clk 0:00:10]} 43. Qxg5 {[%clk 0:00:17]}  Nh7 {[%clk 0:00:09]} 44. Qg3 {[%clk 0:00:17]}  Qf5 {[%clk 0:00:09]} 45. Qxg7# {[%clk 0:00:13]} 1-0


[Site "https://www.chess.com"]

[Event "Titled Tuesday Blitz April 05 Early 2022"]
[White "Shandrygin, Nikita"]
[Black "Bortnyk, Olexandr"]
[WhiteFideId "24198668"]
[BlackFideId "14120828"]
[WhiteElo "2323"]
[BlackElo "2723"]
[Result "0-1"]
[Round "01"]
[TimeControl "180+1"]
[Date "2022.04.05"]
[WhiteClock "0:00:08"]
[BlackClock "0:01:16"]

1. Nf3 {[%clk 0:03:00]}  Nf6 {[%clk 0:02:57]} 2. g3 {[%clk 0:03:00]}  d5 {[%clk 0:02:57]} 3. Bg2 {[%clk 0:03:01]}  Bf5 {[%clk 0:02:57]} 4. O-O {[%clk 0:03:01]}  e6 {[%clk 0:02:58]} 5. c4 {[%clk 0:02:59]}  c6 {[%clk 0:02:58]} 6. Qb3 {[%clk 0:03:00]}  Qb6 {[%clk 0:02:57]} 7. d3 {[%clk 0:02:59]}  Nbd7 {[%clk 0:02:56]} 8. Be3 {[%clk 0:02:58]}  Bc5 {[%clk 0:02:55]} 9. Bxc5 {[%clk 0:01:55]}  Nxc5 {[%clk 0:02:56]} 10. Qa3 {[%clk 0:01:41]}  O-O {[%clk 0:02:53]} 11. Nbd2 {[%clk 0:01:39]}  a5 {[%clk 0:02:52]} 12. Rac1 {[%clk 0:01:23]}  Qb4 {[%clk 0:02:49]} 13. cxd5 {[%clk 0:01:16]}  Qxa3 {[%clk 0:02:32]} 14. bxa3 {[%clk 0:01:15]}  Na4 {[%clk 0:02:33]} 15. dxc6 {[%clk 0:01:13]}  bxc6 {[%clk 0:02:34]} 16. Nd4 {[%clk 0:01:14]}  Rab8 {[%clk 0:02:32]} 17. Bxc6 {[%clk 0:01:11]}  Nb6 {[%clk 0:02:31]} 18. N2b3 {[%clk 0:01:05]}  Bh3 {[%clk 0:02:30]} 19. Rfd1 {[%clk 0:01:04]}  a4 {[%clk 0:02:31]} 20. Nc5 {[%clk 0:01:03]}  Rfd8 {[%clk 0:02:28]} 21. Nf3 {[%clk 0:00:56]}  Rdc8 {[%clk 0:02:29]} 22. Na6 {[%clk 0:00:51]}  Ra8 {[%clk 0:02:15]} 23. Bxa8 {[%clk 0:00:51]}  Rxa8 {[%clk 0:02:16]} 24. Nc7 {[%clk 0:00:47]}  Rd8 {[%clk 0:02:15]} 25. Ne5 {[%clk 0:00:46]}  h5 {[%clk 0:02:15]} 26. Rb1 {[%clk 0:00:44]}  Nbd5 {[%clk 0:02:14]} 27. Nxd5 {[%clk 0:00:44]}  Nxd5 {[%clk 0:02:15]} 28. Rdc1 {[%clk 0:00:43]}  f6 {[%clk 0:02:15]} 29. Rb7 {[%clk 0:00:42]}  fxe5 {[%clk 0:02:13]} 30. Rc4 {[%clk 0:00:40]}  Nf6 {[%clk 0:02:00]} 31. Rcc7 {[%clk 0:00:37]}  Ne8 {[%clk 0:01:57]} 32. Rd7 {[%clk 0:00:24]}  Rc8 {[%clk 0:01:58]} 33. f3 {[%clk 0:00:24]}  Kh7 {[%clk 0:01:28]} 34. Kf2 {[%clk 0:00:21]}  Kh6 {[%clk 0:01:22]} 35. Rb5 {[%clk 0:00:18]}  Nf6 {[%clk 0:01:20]} 36. Ra7 {[%clk 0:00:16]}  Nd5 {[%clk 0:01:18]} 37. Rbb7 {[%clk 0:00:10]}  Rc1 {[%clk 0:01:18]} 38. e4 {[%clk 0:00:09]}  Rc2+ {[%clk 0:01:15]} 39. Ke1 {[%clk 0:00:08]}  Nc3 {[%clk 0:01:16]} 0-1


[Site "https://www.chess.com"]

[Event "Titled Tuesday Blitz April 05 Early 2022"]
[White "Shukhman, Anna"]
[Black "Nenezic, Marko"]
[WhiteFideId "54180058"]
[BlackFideId "912123"]
[WhiteElo "1665"]
[BlackElo "2457"]
[Result "1/2-1/2"]
[Round "01"]
[TimeControl "180+1"]
[Date "2022.04.05"]
[WhiteClock "0:00:21"]
[BlackClock "0:00:12"]

1. e4 {[%clk 0:03:00]}  c5 {[%clk 0:02:49]} 2. Nf3 {[%clk 0:03:00]}  d6 {[%clk 0:02:49]} 3. d4 {[%clk 0:03:00]}  cxd4 {[%clk 0:02:50]} 4. Nxd4 {[%clk 0:03:01]}  Nf6 {[%clk 0:02:50]} 5. Nc3 {[%clk 0:02:59]}  a6 {[%clk 0:02:51]} 6. Qd3 {[%clk 0:02:58]}  Nc6 {[%clk 0:02:48]} 7. Bg5 {[%clk 0:02:55]}  Qa5 {[%clk 0:02:41]} 8. Bxf6 {[%clk 0:02:48]}  gxf6 {[%clk 0:02:41]} 9. Nxc6 {[%clk 0:02:41]}  bxc6 {[%clk 0:02:41]} 10. Be2 {[%clk 0:02:40]}  Rb8 {[%clk 0:02:40]} 11. O-O {[%clk 0:02:32]}  Bg7 {[%clk 0:02:03]} 12. Rab1 {[%clk 0:02:18]}  O-O {[%clk 0:02:02]} 13. a3 {[%clk 0:02:10]}  f5 {[%clk 0:02:01]} 14. Qg3 {[%clk 0:01:56]}  Kh8 {[%clk 0:01:37]} 15. Bd3 {[%clk 0:01:53]}  Be5 {[%clk 0:01:20]} 16. Qh4 {[%clk 0:01:50]}  Bf6 {[%clk 0:01:10]} 17. Qh5 {[%clk 0:01:37]}  Qe5 {[%clk 0:00:38]} 18. exf5 {[%clk 0:01:27]}  d5 {[%clk 0:00:38]} 19. Rfe1 {[%clk 0:01:09]}  Qf4 {[%clk 0:00:38]} 20. Ne2 {[%clk 0:01:06]}  Qd6 {[%clk 0:00:38]} 21. g3 {[%clk 0:00:50]}  a5 {[%clk 0:00:38]} 22. Nf4 {[%clk 0:00:49]}  Kg7 {[%clk 0:00:13]} 23. Qg4+ {[%clk 0:00:39]}  Kh8 {[%clk 0:00:13]} 24. Qh5 {[%clk 0:00:36]}  Kg7 {[%clk 0:00:12]} 25. Qg4+ {[%clk 0:00:21]}  Kh8 {[%clk 0:00:12]} 26. Qh5 {[%clk 0:00:21]} 1/2-1/2


[Site "https://www.chess.com"]

[Event "Titled Tuesday Blitz April 05 Early 2022"]
[White "Shyaamnikhil P"]
[Black "Ilyasli, Ughur"]
[WhiteFideId "5024218"]
[BlackFideId "13416197"]
[WhiteElo "2329"]
[BlackElo "2045"]
[Result "1-0"]
[Round "01"]
[TimeControl "180+1"]
[Date "2022.04.05"]
[WhiteClock "0:00:33"]
[BlackClock "0:00:02"]

1. Nf3 {[%clk 0:02:59]}  Nf6 {[%clk 0:02:58]} 2. g3 {[%clk 0:02:59]}  d5 {[%clk 0:02:59]} 3. Bg2 {[%clk 0:02:59]}  c6 {[%clk 0:03:00]} 4. O-O {[%clk 0:02:59]}  Bg4 {[%clk 0:03:00]} 5. d3 {[%clk 0:02:59]}  Nbd7 {[%clk 0:02:59]} 6. Nbd2 {[%clk 0:03:00]}  e5 {[%clk 0:02:59]} 7. h3 {[%clk 0:03:00]}  Bh5 {[%clk 0:02:58]} 8. e4 {[%clk 0:03:00]}  Be7 {[%clk 0:02:57]} 9. Qe1 {[%clk 0:03:00]}  O-O {[%clk 0:02:55]} 10. Nh2 {[%clk 0:03:00]}  Bc5 {[%clk 0:02:50]} 11. Ndf3 {[%clk 0:02:57]}  Re8 {[%clk 0:02:40]} 12. Nh4 {[%clk 0:02:55]}  Qb6 {[%clk 0:02:31]} 13. Nf5 {[%clk 0:02:47]}  Bg6 {[%clk 0:02:27]} 14. Kh1 {[%clk 0:02:39]}  Bxf5 {[%clk 0:02:14]} 15. exf5 {[%clk 0:02:36]}  e4 {[%clk 0:02:15]} 16. Qd2 {[%clk 0:02:30]}  e3 {[%clk 0:02:07]} 17. fxe3 {[%clk 0:02:28]}  Rxe3 {[%clk 0:01:59]} 18. g4 {[%clk 0:02:23]}  Rae8 {[%clk 0:01:56]} 19. c3 {[%clk 0:02:12]}  Re2 {[%clk 0:01:54]} 20. Qf4 {[%clk 0:02:12]}  Bf2 {[%clk 0:01:35]} 21. d4 {[%clk 0:02:08]}  Be3 {[%clk 0:01:17]} 22. Bxe3 {[%clk 0:02:07]}  R8xe3 {[%clk 0:01:18]} 23. Bf3 {[%clk 0:02:02]}  Qxb2 {[%clk 0:01:00]} 24. Rab1 {[%clk 0:01:51]}  Qxc3 {[%clk 0:00:48]} 25. Rxb7 {[%clk 0:01:38]}  Re1 {[%clk 0:00:40]} 26. Rb1 {[%clk 0:01:02]}  h6 {[%clk 0:00:30]} 27. h4 {[%clk 0:00:55]}  Ne4 {[%clk 0:00:23]} 28. Bxe4 {[%clk 0:00:46]}  Rxe4 {[%clk 0:00:24]} 29. Rbxe1 {[%clk 0:00:43]}  Rxe1 {[%clk 0:00:18]} 30. g5 {[%clk 0:00:42]}  hxg5 {[%clk 0:00:17]} 31. hxg5 {[%clk 0:00:42]}  Rxf1+ {[%clk 0:00:17]} 32. Nxf1 {[%clk 0:00:43]}  Qa1 {[%clk 0:00:16]} 33. g6 {[%clk 0:00:40]}  fxg6 {[%clk 0:00:15]} 34. fxg6 {[%clk 0:00:40]}  Qe1 {[%clk 0:00:01]} 35. Qf7+ {[%clk 0:00:34]}  Kh8 {[%clk 0:00:02]} 36. Kg1 {[%clk 0:00:33]} 1-0


[Site "https://www.chess.com"]

[Event "Titled Tuesday Blitz April 05 Early 2022"]
[White "Smirnov, Pavel"]
[Black "Pesotskiy, Mikhail"]
[WhiteFideId "4123425"]
[BlackFideId "34164453"]
[WhiteElo "2539"]
[BlackElo "2010"]
[Result "1-0"]
[Round "01"]
[TimeControl "180+1"]
[Date "2022.04.05"]
[WhiteClock "0:01:09"]
[BlackClock "0:01:34"]

1. e4 {[%clk 0:02:24]}  e6 {[%clk 0:02:58]} 2. d4 {[%clk 0:02:24]}  d5 {[%clk 0:02:51]} 3. e5 {[%clk 0:02:25]}  c5 {[%clk 0:02:50]} 4. c3 {[%clk 0:02:25]}  Qa5 {[%clk 0:02:51]} 5. Nf3 {[%clk 0:02:21]}  cxd4 {[%clk 0:02:51]} 6. Nxd4 {[%clk 0:02:20]}  Nc6 {[%clk 0:02:51]} 7. Bb5 {[%clk 0:02:16]}  Bd7 {[%clk 0:02:50]} 8. Bxc6 {[%clk 0:02:15]}  bxc6 {[%clk 0:02:51]} 9. O-O {[%clk 0:02:16]}  c5 {[%clk 0:02:50]} 10. Nf3 {[%clk 0:02:11]}  Qc7 {[%clk 0:02:51]} 11. Re1 {[%clk 0:02:11]}  Ne7 {[%clk 0:02:51]} 12. Bf4 {[%clk 0:02:10]}  Nc6 {[%clk 0:02:50]} 13. Nbd2 {[%clk 0:02:09]}  Be7 {[%clk 0:02:49]} 14. c4 {[%clk 0:02:08]}  O-O {[%clk 0:02:45]} 15. cxd5 {[%clk 0:02:03]}  exd5 {[%clk 0:02:46]} 16. Nf1 {[%clk 0:01:56]}  Be6 {[%clk 0:02:42]} 17. Ng3 {[%clk 0:01:56]}  Rfd8 {[%clk 0:02:02]} 18. Ng5 {[%clk 0:01:52]}  Nd4 {[%clk 0:01:52]} 19. Qh5 {[%clk 0:01:45]}  h6 {[%clk 0:01:51]} 20. Nxe6 {[%clk 0:01:26]}  Nxe6 {[%clk 0:01:52]} 21. Bd2 {[%clk 0:01:21]}  Bf8 {[%clk 0:01:42]} 22. Nf5 {[%clk 0:01:16]}  c4 {[%clk 0:01:36]} 23. Re3 {[%clk 0:01:14]}  d4 {[%clk 0:01:34]} 24. Rg3 {[%clk 0:01:10]}  Qxe5 {[%clk 0:01:34]} 25. Nxh6+ {[%clk 0:01:09]} 1-0


[Site "https://www.chess.com"]

[Event "Titled Tuesday Blitz April 05 Early 2022"]
[White "Suarez Uriel, Adrian"]
[Black "Vokhidov, Shamsiddin"]
[WhiteFideId "22230874"]
[BlackFideId "14204223"]
[WhiteElo "2316"]
[BlackElo "2611"]
[Result "0-1"]
[Round "01"]
[TimeControl "180+1"]
[Date "2022.04.05"]
[WhiteClock "0:00:55"]
[BlackClock "0:01:40"]

1. e4 {[%clk 0:02:57]}  c5 {[%clk 0:03:00]} 2. Ne2 {[%clk 0:02:57]}  Nf6 {[%clk 0:02:59]} 3. Nbc3 {[%clk 0:02:56]}  d5 {[%clk 0:02:59]} 4. exd5 {[%clk 0:02:55]}  Nxd5 {[%clk 0:03:00]} 5. Nxd5 {[%clk 0:02:55]}  Qxd5 {[%clk 0:03:00]} 6. Nc3 {[%clk 0:02:56]}  Qd7 {[%clk 0:03:00]} 7. Bc4 {[%clk 0:02:56]}  Nc6 {[%clk 0:03:00]} 8. O-O {[%clk 0:02:52]}  e6 {[%clk 0:03:00]} 9. d3 {[%clk 0:02:52]}  Be7 {[%clk 0:03:00]} 10. Re1 {[%clk 0:02:51]}  O-O {[%clk 0:03:00]} 11. Qg4 {[%clk 0:02:50]}  Kh8 {[%clk 0:02:49]} 12. Bg5 {[%clk 0:02:46]}  b6 {[%clk 0:02:42]} 13. Bxe7 {[%clk 0:02:43]}  Qxe7 {[%clk 0:02:42]} 14. Nd5 {[%clk 0:02:27]}  Qd6 {[%clk 0:02:41]} 15. Ne3 {[%clk 0:02:23]}  Bb7 {[%clk 0:02:32]} 16. a4 {[%clk 0:02:22]}  f5 {[%clk 0:02:30]} 17. Qh4 {[%clk 0:02:18]}  Ne5 {[%clk 0:02:26]} 18. f4 {[%clk 0:01:49]}  Ng6 {[%clk 0:02:25]} 19. Qg3 {[%clk 0:01:47]}  Nxf4 {[%clk 0:02:21]} 20. Bxe6 {[%clk 0:01:30]}  g6 {[%clk 0:02:01]} 21. Nc4 {[%clk 0:01:11]}  Qc7 {[%clk 0:01:58]} 22. Re5 {[%clk 0:01:06]}  Qxe5 {[%clk 0:01:55]} 23. Nxe5 {[%clk 0:01:05]}  Ne2+ {[%clk 0:01:55]} 24. Kf2 {[%clk 0:01:06]}  Nxg3 {[%clk 0:01:56]} 25. hxg3 {[%clk 0:01:00]}  Rae8 {[%clk 0:01:43]} 26. Nf7+ {[%clk 0:00:57]}  Kg7 {[%clk 0:01:41]} 27. Nd6 {[%clk 0:00:54]}  Rxe6 {[%clk 0:01:41]} 28. Nxb7 {[%clk 0:00:55]}  Rb8 {[%clk 0:01:40]} 0-1


[Site "https://www.chess.com"]